fUST/lending_fUST_20260121
["ID","MTS","AMOUNT","RATE_DAILY","PERIOD"]
[402839203,1768927838484,-500.0,0.00019266,2]
[402839204,1768927838500,-249.1664145,0.00019266,2]
[402839205,1768927838512,-250.8335855,0.00019266,2]
[402839206,1768927838522,-500.0,0.00019266,2]
[402839207,1768927838532,-500.0,0.00019266,2]
[402839208,1768927838542,-475.0,0.00019266,2]
[402839209,1768927838551,-713.48434567,0.00019267,2]
[402839210,1768927838562,-1547.43990791,0.00019267,2]
[402839211,1768927838575,-1306.49747477,0.00019267,2]
[402839212,1768927838585,-303.10001603,0.00019278,2]
[402839213,1768927838594,-303.10001606,0.00019278,2]
[402839214,1768927838604,-11110.8577465,0.00019396,2]
[402839215,1768927838614,-303.10001603,0.00019467,2]
[402839216,1768927838624,-303.10001603,0.00019656,2]
[402839217,1768927838634,-161.0,0.00019699,3]
[402839218,1768927838643,-2160.85074503,0.00019729,2]
[402839219,1768927838653,-454.65002405,0.00019845,4]
[402839220,1768927838665,-882.45,0.0002,2]
[402839221,1768927838674,-454.65002405,0.00020034,4]
[402839222,1768927838684,-332.0,0.00020087,2]
[402839223,1768927838694,-303.10001604,0.00020223,4]
[402839224,1768927838704,-258.0,0.00020291,2]
[402839225,1768927838715,-430.0,0.00020304,2]
[402839226,1768927838724,-558.0,0.00020482,2]
[402839227,1768927838734,-600.0,0.00020504,2]
[402839228,1768927838744,-600.0,0.0002052,2]
[402839229,1768927838754,-1414.29051483,0.0002056,2]
[402839230,1768927838764,-600.0,0.00020565,2]
[402839231,1768927838773,-600.0,0.00020615,2]
[402839232,1768927838783,-1500.0,0.00020622,2]
[402839233,1768927838792,-600.0,0.00020622,2]
[402839234,1768927838802,-1500.0,0.00020652,2]
[402839235,1768927838812,-500.0,0.0002066,2]
[402839236,1768927838823,-600.0,0.00020696,2]
[402839237,1768927838832,-1500.0,0.0002072,2]
[402839238,1768927838842,-600.0,0.00020728,2]
[402839239,1768927838852,-500.0,0.00020745,2]
[402839240,1768927838862,-528.13497426,0.00020767,2]
[402839241,1768927838871,-304.58901189,0.00020767,2]
[402839242,1768927838881,-4695.9021452,0.00020768,2]
[402839243,1768927838891,-1500.0,0.0002077,2]
[402839244,1768927838901,-1500.0,0.00020783,2]
[402839245,1768927838912,-1500.0,0.00020795,2]
[402839246,1768927838922,-1500.0,0.00020809,2]
[402839247,1768927838932,-600.0,0.00020838,2]
[402839248,1768927838942,-600.0,0.00020893,2]
[402839249,1768927838952,-600.0,0.000209,2]
[402839250,1768927838962,-600.0,0.00020909,2]
[402839251,1768927838972,-417.0,0.0002092,2]
[402839252,1768927838982,-600.0,0.00020926,2]
[402839253,1768927838992,-600.0,0.0002093,2]
[402839254,1768927839002,-600.0,0.00021011,2]
[402839255,1768927839012,-600.0,0.00021052,2]
[402839256,1768927839023,-600.0,0.0002113,2]
[402839257,1768927839033,-1500.0,0.00021131,2]
[402839258,1768927839043,-1500.0,0.00021135,2]
[402839259,1768927839053,-600.0,0.0002116,2]
[402839260,1768927839063,-600.0,0.00021201,2]
[402839261,1768927839073,-600.0,0.00021226,2]
[402839262,1768927839084,-1500.0,0.00021243,2]
[402839263,1768927839094,-600.0,0.00021266,2]
[402839264,1768927839104,-1500.0,0.00021269,2]
[402839265,1768927839114,-1500.0,0.00021293,2]
[402839266,1768927839125,-1500.0,0.00021305,2]
[402839267,1768927839135,-600.0,0.00021318,2]
[402839268,1768927839144,-1500.0,0.00021319,2]
[402839269,1768927839154,-1500.0,0.00021326,2]
[402839270,1768927839165,-600.0,0.0002133,2]
[402839271,1768927839175,-600.0,0.00021352,2]
[402839272,1768927839183,-600.0,0.00021379,2]
[402839273,1768927839193,-1414.29051481,0.00021391,2]
[402839274,1768927839202,-1500.0,0.00021422,2]
[402839275,1768927839211,-600.0,0.00021443,2]
[402839276,1768927839221,-500.0,0.00021458,2]
[402839277,1768927839230,-166.89459788,0.00021466,2]
[402839278,1768927839239,-600.0,0.00021467,2]
[402839279,1768927839248,-1500.0,0.00021485,2]
[402839280,1768927839258,-600.0,0.00021519,2]
[402839281,1768927839267,-600.0,0.00021521,2]
[402839282,1768927839276,-600.0,0.00021539,2]
[402839283,1768927839285,-902.3596719,0.00021551,2]
[402839284,1768927839295,-1500.0,0.00021576,2]
[402839285,1768927839304,-600.0,0.00021615,2]
[402839286,1768927839314,-7216.48,0.00021629,2]
[402839287,1768927839322,-21306.0445141,0.0002165,2]
[402839288,1768927839331,-846.0132,0.0002165,2]
[402839289,1768927839341,-169.2168,0.0002165,3]
[402839290,1768927839350,-167.89,0.000217,2]
[402839291,1768927839359,-254.97,0.000217,2]
[402839292,1768927839367,-4497.08,0.000217,2]
[402839293,1768927839376,-238.85,0.000217,2]
[402839294,1768927839387,-600.0,0.00021757,2]
[402839295,1768927839396,-1500.0,0.00021758,2]
[402839296,1768927839408,-1500.0,0.00021778,2]
[402839297,1768927839419,-600.0,0.00021785,2]
[402839298,1768927839429,-1500.0,0.00021792,2]
[402839299,1768927839438,-500.0,0.00021796,2]
[402839300,1768927839447,-600.0,0.00021801,2]
[402839301,1768927839457,-1245.460179,0.00021801,7]
[402839302,1768927839466,-2535.50363363,0.00021819,2]
[402839303,1768927839475,-600.0,0.00021819,2]
[402839304,1768927839485,-1500.0,0.0002182,2]
[402839305,1768927839497,-600.0,0.00021827,2]
[402839306,1768927839506,-600.0,0.00021829,2]
[402839307,1768927839515,-296.382771,0.0002184,7]
[402839308,1768927839525,-214.986534,0.0002184,7]
[402839309,1768927839534,-600.0,0.00021844,2]
[402839310,1768927839543,-600.0,0.00021857,2]
[402839311,1768927839553,-600.0,0.00021867,2]
[402839312,1768927839563,-422.6006056,0.00021874,30]
[402839313,1768927839573,-1500.0,0.0002188,2]
[402839314,1768927839582,-600.0,0.00021886,2]
[402839315,1768927839591,-600.0,0.00021898,2]
[402839316,1768927839600,-600.0,0.000219,2]
[402839317,1768927839609,-422.6006056,0.00021929,30]
[402839319,1768927839618,-600.0,0.00021936,2]
[402839320,1768927839628,-330.0,0.00021984,2]
[402839321,1768927839637,-422.6006056,0.00021984,30]
[402839322,1768927839647,-1500.0,0.00021987,2]
[402839323,1768927839656,-600.0,0.00021989,2]
[402839325,1768927839665,-600.0,0.00021994,2]
[402839326,1768927839675,-1500.0,0.00022015,2]
[402839327,1768927839684,-602.92061325,0.00022016,2]
[402839328,1768927839694,-422.6006056,0.0002204,30]
[402839329,1768927839703,-600.0,0.00022062,2]
[402839330,1768927839713,-600.0,0.00022065,2]
[402839331,1768927839732,-153.413739,0.00022082,30]
[402839332,1768927839743,-403.556183,0.00022082,30]
[402839333,1768927839753,-281.88,0.000221,3]
[402839334,1768927839764,-500.0,0.00022134,2]
[402839335,1768927839774,-1500.0,0.00022182,2]
[402839336,1768927839784,-1500.0,0.00022193,2]
[402839337,1768927839793,-600.0,0.00022195,2]
[402839338,1768927839803,-1414.29051481,0.00022221,2]
[402839340,1768927839813,-1500.0,0.00022235,2]
[402839342,1768927839822,-285.0,0.00022291,2]
[402839344,1768927839831,-2898.8072169,0.00022302,2]
[402839345,1768927839840,-1000000.0,0.0002232,2]
[402839346,1768927839850,-153.413741,0.00022321,30]
[402839347,1768927839859,-600.0,0.00022333,2]
[402839348,1768927839869,-1043.40716341,0.00022376,2]
[402839349,1768927839878,-613.65496,0.00022384,30]
[402839350,1768927839887,-855.476717,0.0002239,30]
[402839351,1768927839897,-12274.33253822,0.000224,2]
[402839352,1768927839912,-346.16352336,0.000224,2]
[402839353,1768927839924,-4827.5805675,0.000224,2]
[402839354,1768927839937,-3588.67918169,0.000224,2]
[402839355,1768927839948,-2799.18313553,0.000224,2]
[402839360,1768927840384,-5000.0,0.00010671,2]
[402839361,1768927840393,-178.0,0.0002092,2]
[402839362,1768927840403,-7121.50766212,0.00021605,10]
[402839375,1768927843355,-2468.44266248,0.00021605,10]
[402839389,1768927846534,-333.417,0.00022095,30]
[402839390,1768927846646,-89.1836056,0.00022095,30]
[402839391,1768927846657,-422.6006056,0.0002215,30]
[402839392,1768927846670,-422.6006056,0.00022205,30]
[402839393,1768927846681,-302.64446842,0.0002226,30]
[402839430,1768929032184,-3621.50184145,0.00010492,10]
[402839432,1768929032196,-1378.49815855,0.00010492,10]
[402839434,1768929032205,-168.33,0.00010519,2]
[402839436,1768929032215,-567.0,0.00010519,2]
[402839438,1768929032225,-189.37,0.00010895,2]
[402839440,1768929032235,-210.42,0.0001127,2]
[402839442,1768929032244,-177.0,0.00012599,2]
[402839444,1768929032255,-204.0,0.00014599,2]
[402839446,1768929032264,-191.0,0.0001589,3]
[402839448,1768929032273,-231.0,0.00016599,2]
[402839450,1768929032282,-1041.66666667,0.00018102,2]
[402839452,1768929032291,-1200.0,0.00018432,2]
[402839454,1768929032303,-300.0,0.00018433,2]
[402839456,1768929032313,-300.0,0.00018433,2]
[402839458,1768929032323,-946.15523587,0.00018434,2]
[402839460,1768929032332,-258.0,0.00018599,2]
[402839462,1768929032342,-1814.86611902,0.000187,2]
[402839464,1768929032351,-295.0,0.00018762,2]
[402839466,1768929032361,-357.35007237,0.00018775,2]
[402839468,1768929032371,-500.0,0.00018775,2]
[402839470,1768929032380,-186.61733138,0.00018775,2]
[402839472,1768929032390,-500.0,0.00018775,2]
[402839474,1768929032399,-500.0,0.00018775,2]
[402839476,1768929032408,-165.0,0.00018775,2]
[402839477,1768929032418,-43552.30651357,0.00018776,2]
[402839479,1768929032430,-1114.51852297,0.00018776,2]
[402839493,1768929038256,-882.45,0.00018101,2]
[402839495,1768929038265,-955333.17496346,0.00018776,2]
[402839497,1768929038275,-3551.00741905,0.000188,2]
[402839499,1768929038284,-3551.00741901,0.00018838,2]
[402839502,1768929038294,-300.0,0.00018857,2]
[402839504,1768929038304,-3551.00741901,0.00018876,2]
[402839505,1768929038314,-303.10001603,0.000189,2]
[402839507,1768929038325,-303.10001603,0.000189,2]
[402839510,1768929038336,-3551.00741901,0.00018913,2]
[402839512,1768929038346,-359.0,0.00018936,2]
[402839513,1768929038355,-3551.00741901,0.00018951,2]
[402839515,1768929038366,-3551.00741901,0.00018989,2]
[402839518,1768929038376,-10000.0,0.00019,4]
[402839519,1768929038386,-166.89459788,0.00019083,2]
[402839521,1768929038396,-303.10001603,0.00019089,2]
[402839523,1768929038406,-303.10001603,0.00019089,2]
[402839525,1768929038416,-459.0,0.00019113,2]
[402839528,1768929038425,-1188.25,0.00019183,2]
[402839529,1768929038434,-1269.0198,0.00019184,2]
[402839532,1768929038444,-1269.0198,0.00019185,2]
[402839534,1768929038454,-1269.0198,0.00019186,2]
[402839536,1768929038463,-200.0,0.00019186,2]
[402839539,1768929038473,-1269.0198,0.00019187,2]
[402839540,1768929038483,-1269.0198,0.00019188,2]
[402839542,1768929038492,-1269.0198,0.00019189,2]
[402839545,1768929038501,-1269.0198,0.0001919,2]
[402839546,1768929038511,-507.61,0.00019191,2]
[402839548,1768929038520,-314.35,0.000192,2]
[402839550,1768929038530,-298.56,0.000192,2]
[402839552,1768929038539,-5621.35,0.000192,2]
[402839554,1768929038549,-30882.02,0.000192,2]
[402839556,1768929038559,-167.89,0.000192,2]
[402839559,1768929038568,-500.0,0.000192,2]
[402839561,1768929038577,-303.10001603,0.00019278,2]
[402839562,1768929038587,-303.10001603,0.00019278,2]
[402839565,1768929038596,-303.10001603,0.00019467,2]
[402839567,1768929038605,-303.10001603,0.00019467,2]
[402839569,1768929038615,-303.10001603,0.00019656,2]
[402839571,1768929038626,-303.10001603,0.00019656,2]
[402839573,1768929038635,-454.65002405,0.00019845,4]
[402839575,1768929038645,-454.65002405,0.00019845,4]
[402839577,1768929038654,-1151.8109273,0.0002,5]
[402839579,1768929038663,-300.0,0.0002,2]
[402839580,1768929038672,-453.8002,0.0002,4]
[402839582,1768929038682,-253.8102,0.0002,4]
[402839585,1768929038691,-253.8002,0.0002,4]
[402839587,1768929038700,-423.0102,0.0002,4]
[402839589,1768929038710,-1269.0198,0.0002,4]
[402839591,1768929038719,-1269.0198,0.0002,4]
[402839592,1768929038728,-1269.0198,0.0002,4]
[402839594,1768929038738,-2000.0,0.0002,7]
[402839596,1768929038747,-454.65002405,0.00020034,4]
[402839598,1768929038757,-454.65002405,0.00020034,4]
[402839600,1768929038766,-420.0,0.00020104,2]
[402839602,1768929038775,-817.0,0.00020201,2]
[402839604,1768929038785,-454.65002405,0.00020223,4]
[402839606,1768929038795,-454.65002405,0.00020223,4]
[402839608,1768929038804,-1814.86611901,0.00020281,2]
[402839610,1768929038815,-1600.0,0.00020409,2]
[402839612,1768929038826,-454.65002405,0.00020412,4]
[402839614,1768929038835,-454.65002405,0.00020412,4]
[402839616,1768929038845,-1600.0,0.00020468,2]
[402839618,1768929038855,-600.0,0.00020471,2]
[402839620,1768929038865,-1600.0,0.00020506,2]
[402839622,1768929038875,-600.0,0.0002054,2]
[402839624,1768929038885,-7216.48,0.00020547,2]
[402839626,1768929038897,-600.0,0.00020587,2]
[402839629,1768929038908,-2000.0,0.00020588,7]
[402839630,1768929038917,-285.0,0.00020599,2]
[402839633,1768929038927,-454.65002405,0.00020601,4]
[402839634,1768929038937,-454.65002405,0.00020601,4]
[402839636,1768929038947,-600.0,0.00020658,2]
[402839639,1768929038958,-1600.0,0.00020676,2]
[402839640,1768929038967,-600.0,0.00020691,2]
[402839642,1768929038977,-600.0,0.00020695,2]
[402839645,1768929038987,-1600.0,0.000207,2]
[402839647,1768929038997,-600.0,0.000207,2]
[402839649,1768929039007,-1600.0,0.00020714,2]
[402839651,1768929039017,-600.0,0.00020723,2]
[402839653,1768929039027,-873.94412107,0.00020723,2]
[402839655,1768929039037,-600.0,0.00020792,2]
[402839657,1768929039047,-2054.2827693,0.00020793,2]
[402839659,1768929039056,-1600.0,0.00020835,2]
[402839661,1768929039066,-600.0,0.0002084,2]
[402839663,1768929039076,-1600.0,0.00020878,2]
[402839665,1768929039086,-314.35,0.000209,2]
[402839667,1768929039096,-298.56,0.000209,2]
[402839669,1768929039106,-5621.35,0.000209,2]
[402839671,1768929039116,-30882.02,0.000209,2]
[402839673,1768929039126,-417.0,0.0002092,2]
[402839675,1768929039136,-178.0,0.0002092,2]
[402839677,1768929039146,-330.0,0.00020938,2]
[402839679,1768929039157,-1600.0,0.00020983,2]
[402839681,1768929039167,-3000.0,0.00021,2]
[402839683,1768929039176,-3000.0,0.0002101,2]
[402839685,1768929039186,-600.0,0.00021016,2]
[402839687,1768929039196,-3000.0,0.0002102,2]
[402839689,1768929039206,-600.0,0.00021029,2]
[402839691,1768929039216,-3000.0,0.0002103,2]
[402839693,1768929039226,-3000.0,0.0002104,2]
[402839695,1768929039236,-3000.0,0.0002105,2]
[402839697,1768929039246,-3000.0,0.0002106,2]
[402839699,1768929039256,-3000.0,0.0002107,2]
[402839701,1768929039266,-500.0,0.00021072,2]
[402839703,1768929039276,-3000.0,0.0002108,2]
[402839705,1768929039285,-500.0,0.00021089,2]
[402839707,1768929039295,-3000.0,0.0002109,2]
[402839709,1768929039304,-231.379941,0.0002109,7]
[402839711,1768929039314,-372.443537,0.0002109,7]
[402839713,1768929039323,-3000.0,0.000211,2]
[402839715,1768929039333,-3000.0,0.0002111,2]
[402839717,1768929039343,-931.108845,0.0002111,7]
[402839720,1768929039353,-600.0,0.00021117,2]
[402839722,1768929039363,-3000.0,0.0002112,2]
[402839724,1768929039373,-3000.0,0.0002113,2]
[402839725,1768929039382,-1600.0,0.00021132,2]
[402839728,1768929039392,-3000.0,0.0002114,2]
[402839730,1768929039401,-555.311857,0.0002114,7]
[402839731,1768929039411,-2119.530165,0.00021143,7]
[402839734,1768929039421,-3000.0,0.0002115,2]
[402839736,1768929039430,-3000.0,0.0002116,2]
[402839737,1768929039440,-3000.0,0.0002117,2]
[402839739,1768929039449,-2000.0,0.00021176,7]
[402839741,1768929039459,-3000.0,0.0002118,2]
[402839743,1768929039469,-1600.0,0.0002118,2]
[402839745,1768929039479,-3000.0,0.0002119,2]
[402839747,1768929039489,-160.871941,0.0002119,7]
[402839749,1768929039500,-3000.0,0.000212,2]
[402839751,1768929039509,-1388.279642,0.000212,7]
[402839753,1768929039518,-2435.47853363,0.00021206,2]
[402839755,1768929039527,-3000.0,0.0002121,2]
[402839757,1768929039537,-600.0,0.00021214,2]
[402839760,1768929039547,-3000.0,0.0002122,2]
[402839762,1768929039556,-2090.787725,0.00021223,7]
[402839764,1768929039566,-3000.0,0.0002123,2]
[402839766,1768929039576,-600.0,0.00021231,2]
[402839768,1768929039585,-1600.0,0.00021239,2]
[402839770,1768929039595,-3000.0,0.0002124,2]
[402839772,1768929039604,-1600.0,0.00021243,2]
[402839774,1768929039614,-3000.0,0.0002125,2]
[402839776,1768929039623,-3000.0,0.0002126,2]
[402839778,1768929039633,-386.092656,0.0002126,7]
[402839780,1768929039642,-3000.0,0.0002127,2]
[402839782,1768929039651,-3000.0,0.0002128,2]
[402839784,1768929039660,-3000.0,0.0002129,2]
[402839786,1768929039669,-3000.0,0.000213,2]
[402839787,1768929039680,-1600.0,0.00021306,2]
[402839788,1768929039690,-3000.0,0.0002131,2]
[402839789,1768929039699,-600.0,0.00021318,2]
[402839790,1768929039709,-3000.0,0.0002132,2]
[402839791,1768929039719,-405.9297556,0.00021323,25]
[402839792,1768929039729,-3000.0,0.0002133,2]
[402839793,1768929039738,-3000.0,0.0002134,2]
[402839794,1768929039747,-3000.0,0.0002135,2]
[402839795,1768929039757,-3000.0,0.0002136,2]
[402839796,1768929039767,-1600.0,0.00021361,2]
[402839797,1768929039777,-161.0,0.0002137,4]
[402839798,1768929039786,-3000.0,0.0002137,2]
[402839799,1768929039796,-3000.0,0.0002138,2]
[402839800,1768929039805,-3000.0,0.0002139,2]
[402839801,1768929039815,-3000.0,0.000214,2]
[402839802,1768929039828,-3000.0,0.0002141,2]
[402839803,1768929039838,-600.0,0.0002141,2]
[402839804,1768929039848,-1600.0,0.00021417,2]
[402839805,1768929039859,-3000.0,0.0002142,2]
[402839806,1768929039868,-847.80385513,0.0002143,2]
[402839807,1768929039886,-4010.49128487,0.0002143,2]
[402839808,1768929039897,-405.9297556,0.0002144,27]
[402839809,1768929039907,-600.0,0.0002147,2]
[402839810,1768929039916,-600.0,0.00021478,2]
[402839811,1768929039926,-600.0,0.0002148,2]
[402839812,1768929039936,-600.0,0.00021482,2]
[402839813,1768929039946,-600.0,0.00021492,2]
[402839814,1768929039956,-600.0,0.00021495,2]
[402839816,1768929040105,-600.0,0.00021502,2]
[402839817,1768929040125,-405.9297556,0.00021557,28]
[402839818,1768929040135,-600.0,0.0002156,2]
[402839819,1768929040145,-1600.0,0.00021566,2]
[402839820,1768929040155,-600.0,0.00021599,2]
[402839821,1768929040166,-1600.0,0.00021605,2]
[402839822,1768929040175,-1600.0,0.00021669,2]
[402839823,1768929040184,-405.9297556,0.00021674,30]
[402839824,1768929040195,-600.0,0.00021681,2]
[402839825,1768929040205,-600.0,0.00021696,2]
[402839826,1768929040215,-159.17,0.00021738,2]
[402839827,1768929040225,-600.0,0.00021739,2]
[402839828,1768929040235,-2000.0,0.00021765,7]
[402839829,1768929040244,-600.0,0.00021765,2]
[402839830,1768929040254,-600.0,0.0002178,2]
[402839831,1768929040264,-405.9297556,0.0002179,30]
[402839832,1768929040274,-600.0,0.00021802,2]
[402839833,1768929040283,-600.0,0.00021811,2]
[402839834,1768929040293,-600.0,0.00021814,2]
[402839835,1768929040303,-494.66831792,0.00021814,2]
[402839836,1768929040313,-1976.69459841,0.00021814,2]
[402839837,1768929040323,-59.08860882,0.00021828,2]
[402839840,1768929040725,-532.33,0.00021828,2]
[402839874,1768929046313,-8.58139118,0.00021828,2]
[402839875,1768929046324,-600.0,0.0002183,2]
[402839876,1768929046334,-1814.86611901,0.00021862,2]
[402839877,1768929046344,-600.0,0.00021869,2]
[402839878,1768929046355,-600.0,0.00021874,2]
[402839879,1768929046365,-706.68043567,0.00021884,2]
[402839880,1768929046418,-195.67923623,0.00021884,2]
[402839881,1768929046428,-600.0,0.0002189,2]
[402839882,1768929046438,-933.30295269,0.00021897,2]
[402843132,1768929797659,310.0,0.00027397,120]
[402843540,1768929850505,225.3401207,0.00027397,120]
[402844735,1768930041508,5000.0,0.0001,10]
[402845117,1768930107813,561.1438134,0.00027397,120]
[402845867,1768930232376,-410.04481136,9.801e-05,10]
[402845868,1768930232429,-912.08134046,9.801e-05,10]
[402845869,1768930232442,-2064.5055936,9.801e-05,10]
[402845937,1768930238533,-1613.36825458,9.801e-05,10]
[402845938,1768930238542,-1187.95836137,9.9e-05,10]
[402845940,1768930238552,-300.0,9.998e-05,2]
[402845941,1768930238561,-817.0,9.998e-05,2]
[402845942,1768930238571,-560.0,9.999e-05,2]
[402845943,1768930238581,-632.97831556,9.999e-05,2]
[402845944,1768930238595,-500.0,9.999e-05,2]
[402845945,1768930238605,-500.0,9.999e-05,2]
[402845946,1768930238615,-500.0,9.999e-05,2]
[402845947,1768930238630,-500.0,9.999e-05,2]
[402845948,1768930238641,-500.0,9.999e-05,2]
[402845949,1768930238651,-527.52435675,9.999e-05,2]
[402845951,1768930238660,-500.0,9.999e-05,2]
[402845952,1768930238670,-500.0,9.999e-05,2]
[402845953,1768930238680,-500.0,9.999e-05,2]
[402845954,1768930238690,-350.74977305,9.999e-05,2]
[402845955,1768930238699,-611.26738362,9.999e-05,2]
[402845956,1768930238710,-500.0,9.999e-05,2]
[402845957,1768930238719,-500.0,9.999e-05,2]
[402845958,1768930238729,-500.0,9.999e-05,2]
[402845959,1768930238738,-500.0,9.999e-05,2]
[402845960,1768930238749,-463.82517767,9.999e-05,2]
[402845961,1768930238758,-500.0,9.999e-05,2]
[402845962,1768930238768,-500.0,9.999e-05,2]
[402845963,1768930238778,-500.0,9.999e-05,2]
[402845964,1768930238787,-18478.61774623,0.0001,2]
[402845965,1768930238799,-15267.21923343,0.0001,2]
[402845966,1768930238811,-11558.16302034,0.0001,2]
[402845968,1768930238820,-420.0,0.00010998,2]
[402845969,1768930238830,-177.0,0.00011851,2]
[402845970,1768930238840,-587.0,0.00012098,2]
[402845971,1768930238850,-204.0,0.00013851,2]
[402845972,1768930238861,-21187.69815998,0.00014,7]
[402845973,1768930238873,-307.44259338,0.00014378,2]
[402845974,1768930238885,-636.88614525,0.00014378,2]
[402845975,1768930238896,-1361.14958931,0.00014379,2]
[402845976,1768930238906,-300.9576394,0.00014479,2]
[402845977,1768930238916,-1000.0,0.00014494,2]
[402845979,1768930238926,-11110.8577465,0.0001453,2]
[402845980,1768930238936,-2408.0475821,0.0001509,2]
[402845981,1768930238946,-1000000.0,0.00015459,2]
[402845982,1768930238956,-989.57,0.00015555,2]
[402845983,1768930238970,-265.151,0.00015556,2]
[402845984,1768930238982,-21306.0445141,0.00015559,2]
[402845985,1768930238992,-231.0,0.00015851,2]
[402845986,1768930239002,-168.0,0.00015945,3]
[402845987,1768930239011,-2834.2652827,0.00016345,2]
[402845988,1768930239021,-1361.14958925,0.00016578,2]
[402845989,1768930239031,-198.8378771,0.00016733,2]
[402845991,1768930239040,-175.961228,0.00017715,2]
[402845992,1768930239050,-1041.66666667,0.0001785,2]
[402845993,1768930239060,-258.0,0.00017851,2]
[402845994,1768930239070,-500.0,0.00017899,2]
[402845995,1768930239079,-159.62665952,0.00017962,2]
[402845996,1768930239088,-1000.0,0.00018,18]
[402845997,1768930239098,-285.0,0.00018192,2]
[402845998,1768930239108,-341.0,0.00018369,2]
[402845999,1768930239117,-403.0,0.00018561,2]
[402846000,1768930239128,-500.0,0.00018767,2]
[402846001,1768930239138,-1361.14958925,0.00018776,2]
[402846003,1768930239151,-166.89459788,0.000188,2]
[402846004,1768930239161,-303.10001603,0.000189,2]
[402846005,1768930239171,-303.10001603,0.000189,2]
[402846006,1768930239181,-203.14041224,0.00018904,2]
[402846007,1768930239191,-500.0,0.00018904,2]
[402846008,1768930239201,-964.0,0.00018904,2]
[402846009,1768930239211,-154.87231411,0.00018904,2]
[402846010,1768930239220,-17980.14995828,0.00019,2]
[402846011,1768930239230,-2603.49,0.00019,2]
[402846012,1768930239240,-268.58586083,0.00019041,2]
[402846013,1768930239249,-964.0,0.00019041,2]
[402846014,1768930239258,-303.10001603,0.00019089,2]
[402846015,1768930239267,-303.10001603,0.00019089,2]
[402846016,1768930239276,-159.62665952,0.0001909,2]
[402846017,1768930239286,-156.8854744,0.0001909,2]
[402846019,1768930239294,-157.24845598,0.0001909,2]
[402846020,1768930239303,-964.0,0.00019178,2]
[402846021,1768930239315,-846.0132,0.00019178,2]
[402846022,1768930239324,-846.0132,0.00019178,2]
[402846023,1768930239334,-846.0132,0.00019178,2]
[402846024,1768930239344,-846.0132,0.00019178,2]
[402846025,1768930239353,-846.0132,0.00019178,2]
[402846026,1768930239363,-200.0,0.00019178,2]
[402846027,1768930239373,-846.0132,0.00019178,2]
[402846028,1768930239382,-846.0132,0.00019178,2]
[402846029,1768930239392,-507.6079,0.00019178,2]
[402846031,1768930239402,-507.6079,0.00019178,2]
[402846032,1768930239412,-314.35,0.000192,2]
[402846033,1768930239422,-298.56,0.000192,2]
[402846034,1768930239431,-5621.35,0.000192,2]
[402846035,1768930239441,-30882.02,0.000192,2]
[402846036,1768930239451,-167.89,0.000192,2]
[402846037,1768930239462,-1950.0333168,0.00019205,5]
[402846038,1768930239472,-303.10001603,0.00019278,2]
[402846039,1768930239482,-303.10001603,0.00019278,2]
[402846040,1768930239491,-964.0,0.00019315,2]
[402846041,1768930239501,-2000.0,0.00019403,7]
[402846043,1768930239510,-964.0,0.00019452,2]
[402846044,1768930239520,-303.10001603,0.00019467,2]
[402846045,1768930239529,-303.10001603,0.00019467,2]
[402846046,1768930239539,-964.0,0.00019589,2]
[402846047,1768930239549,-846.0132,0.00019589,3]
[402846048,1768930239559,-707.6068,0.00019589,3]
[402846049,1768930239568,-676.8068,0.00019589,3]